Cogmind - Beta 14 *** ADVENTURER MODE // 2024.08.08 @ 21:48:53 Player: Ronin_tempest Result: Destroyed by as-31861 with Assembled Heavy Rifle Performance ------------- Evolutions (4) 2000 Regions Visited (13) 2600 Robots Destroyed (209) 1045 Value Destroyed (11081) 11081 Prototype IDs (9) 180 Alien Tech Used (0) 0 Bonus (5493) 5493 TOTAL SCORE: 22399 Bonus ------- High Alert Combat Kills 1818 Follower Combat Kills 1024 Entered Garrisons 800 Used RIF Installer 2500 Friendly Fire -649 Cogmind --------- Core Integrity 0/850 Matter 300/300 Energy 262/290 System Corruption 0% Temperature Cool (0) Movement Rolling (130) Ox2 Location -6/Garrison Parts ------- > --- POWER (1) -------- Improved Deuterium Engine > --- PROPULSION (2) --- Armored Huge Wheel > --- UTILITY (9) ------ Improved Heat Sink Improved Cooling System High-capacity Storage Unit Advanced Visual Processing Unit Core Shielding Relay Coupler [Grunt] (35) Relay Coupler [Grunt] (29) Relay Coupler [Behemoth] (1) > --- WEAPON (3) ------- Quantum Rifle Heavy Plasma Cannon Axe > --- INVENTORY (20) --- Micro Nuclear Core Wheel Wheel System Shield Relay Coupler [NC] (32) Relay Coupler [NC] (31) Relay Coupler [Grunt] (53) Relay Coupler [Grunt] (49) Relay Coupler [Brawler] (35) Relay Coupler [Duelist] (37) Relay Coupler [Sentry] (28) Relay Coupler [Hunter] (17) Relay Coupler [Heavy] (18) Heavy Laser Gauss Rifle Gauss Rifle Flak Gun Micro-nuke Launcher Remote Datajack Remote Datajack Peak State ------------ > --- POWER ------------ Light Nuclear Core > --- PROPULSION ------- Advanced VSS Leg Advanced VSS Leg > --- UTILITY ---------- Improved Heat Sink High-capacity Storage Unit Advanced Visual Processing Unit Improved Utility Shielding Hacking Suite Relay Coupler [Grunt] Relay Coupler [Brawler] Relay Coupler [Sentry] Improved System Guard > --- WEAPON ----------- Dispersion Rifle Phase Cannon Improved Remote Datajack > --- INVENTORY -------- Antimatter Reactor Hardened Medium Armor Plating Improved Light Armor Plating System Shield Relay Coupler [NC] Relay Coupler [NC] Relay Coupler [Grunt] Relay Coupler [Grunt] Relay Coupler [Grunt] Relay Coupler [Grunt] Relay Coupler [Brawler] Relay Coupler [Duelist] Relay Coupler [Hunter] Relay Coupler [Heavy] Relay Coupler [Behemoth] Hardcell Cannon Micro-nuke Launcher Remote Datajack Katana [Rating: 72] Favorites ----------- Power Nuclear Core Engine Improved Deuterium Engine Power Core Nuclear Core Reactor Antimatter Reactor Propulsion Armored Wheel Treads Armored Treads Leg Advanced VSS Leg Wheel Armored Wheel Utility High-capacity Storage Unit Device Improved Heat Sink Storage High-capacity Storage Unit Processor Advanced Visual Processing Unit Hackware Relay Coupler [Grunt] Protection Improved Light Armor Plating Weapon Heavy Assault Rifle Energy Gun Beamcaster Energy Cannon Advanced Beam Cannon Ballistic Gun Heavy Assault Rifle Ballistic Cannon Bore Cannon Launcher Micro-nuke Launcher Special Weapon Remote Datajack Impact Weapon Mace Slashing Weapon Katana Build | -11 -10 -10 -9 -9 -8 -8 -8 -7 -7 -7 -7 -6 -6 ------- Run | Yrd Mat Min Mat Min Mat Gar Mat Fac Gar Fac Gar Fac Gar Slots Evolved 8 | . . . 2 . 2 . . 2 . . . 2 . Power . | . . . . . . . . . . . . . . Propulsion . | . . . . . . . . . . . . . . Utility 7 | . . . 1 . 2 . . 2 . . . 2 . Weapon 1 | . . . 1 . . . . . . . . . . Parts Attached 204 | 2 7 2 15 5 16 28 3 5 15 . 39 37 30 Power 16 | . 1 1 2 . 2 2 1 . 1 . 1 2 3 Engine 4 | . 1 . . . . . . . 1 . . 1 1 Core 10 | . . 1 2 . 2 2 1 . . . 1 . 1 Reactor 2 | . . . . . . . . . . . . 1 1 Propulsion 31 | . 3 1 4 . 3 4 . . 2 . 5 9 . Treads 12 | . 2 1 4 . 3 2 . . . . . . . Leg 5 | . 1 . . . . . . . . . 4 . . Wheel 14 | . . . . . . 2 . . 2 . 1 9 . Hover . | . . . . . . . . . . . . . . Flight . | . . . . . . . . . . . . . . Utility 72 | 1 2 . 3 1 5 12 . 2 3 . 12 16 15 Device 18 | 1 1 . . 1 2 3 . . . . 1 5 4 Storage 3 | . 1 . 1 . . . . . . . . 1 . Processor 4 | . . . . . 1 . . . . . 1 1 1 Hackware 25 | . . . . . . 3 . 1 3 . 8 4 6 Protection 22 | . . . 2 . 2 6 . 1 . . 2 5 4 Artifact . | . . . . . . . . . . . . . . Weapon 85 | 1 1 . 6 4 6 10 2 3 9 . 21 10 12 Energy Gun 12 | . . . 2 1 3 1 . . 1 . 2 1 1 Energy Cannon 9 | . 1 . 1 . 1 2 1 1 . . 1 1 . Ballistic Gun 15 | 1 . . 2 2 1 3 1 1 . . 2 . 2 Ballistic Cannon 3 | . . . . . . . . . . . 1 2 . Launcher 4 | . . . . 1 . . . . 1 . . . 2 Special Weapon 21 | . . . . . . 2 . . 4 . 9 2 4 Impact Weapon 4 | . . . 1 . 1 2 . . . . . . . Slashing Weapon 17 | . . . . . . . . 1 3 . 6 4 3 Piercing Weapon . | . . . . . . . . . . . . . . Special Melee Weapon . | . . . . . . . . . . . . . . Unidentified Prototypes 1 | . . . . . 1 . . . . . . . . Parts Lost 55 | . . . 3 1 4 9 1 . 1 . 11 15 10 Power 8 | . . . . . . 2 1 . . . 1 2 2 Propulsion 9 | . . . 1 . . 2 . . 1 . 3 2 . Utility 23 | . . . 1 . 1 4 . . . . 3 6 8 Weapon 15 | . . . 1 1 3 1 . . . . 4 5 . Highest Loss Streak 8 | . . . 2 1 2 2 1 . 1 . 5 8 5 To Critical Strikes . | . . . . . . . . . . . . . . Average Slot Usage (%) 94 | . 100 100 99 99 98 93 98 90 91 92 96 88 79 Engine 1 | . 14 . . . . . . . . 7 5 1 . Core 6 | . . 13 10 11 8 9 8 7 6 . 1 1 . Treads 8 | . 8 28 21 22 17 10 . . . . . . . Leg 2 | . 19 . . . . . . . . . 6 2 . Wheel 5 | . . . . . . 4 18 15 14 15 7 8 6 Device 10 | . 14 14 11 11 17 18 . . . . 4 10 11 Storage 8 | . 14 14 11 11 9 9 9 7 7 7 7 6 6 Processor 2 | . . . . . 9 . . . . . 2 7 8 Hackware 12 | . . . . . . 1 27 28 30 30 30 22 12 Protection 7 | . . . 10 11 8 14 9 7 7 7 4 4 5 Energy Gun 6 | . . . 8 9 9 8 9 2 4 7 6 4 6 Energy Cannon 6 | . 11 14 11 11 2 7 6 4 2 . 1 4 6 Ballistic Gun 5 | . 16 14 4 10 9 7 1 7 7 7 2 . . Special Weapon 1 | . . . . . . . 9 2 1 . 4 3 3 Impact Weapon 2 | . . . 9 1 5 1 . . . . . . . Slashing Weapon 1 | . . . . . . . . 4 5 7 2 2 . Peak Build Rating 72 | 9 9 12 23 27 35 34 35 46 47 45 66 72 71 Average Rating 36 | 7 7 11 20 25 31 26 34 42 45 45 48 60 61 On Entrance 32 | 6 9 8 12 22 27 30 34 35 46 45 45 66 67 Naked Turns . | . . . . . . . . . . . . . . Heaviest Build 107 | 12 29 33 60 63 65 68 60 79 81 80 81 95 107 Greatest Support 40 | 20 40 40 40 40 40 40 24 24 24 24 36 36 28 Greatest Overweight (x) 6 | . . . 1 1 1 5 2 3 6 3 6 6 3 Average Overweight (x) 2 | . . . . 1 1 1 2 2 3 3 3 3 2 Largest Inventory Capacity 20 | 8 15 15 20 20 20 20 20 20 20 20 20 20 20 Average Capacity 19 | 8 10 15 17 20 20 20 20 20 20 20 20 20 20 Most Carried 20 | 6 8 12 18 20 20 20 20 20 20 20 20 20 20 Average Carried 17 | 6 6 11 14 18 18 19 19 19 19 20 18 18 18 Final Capacity 20 | 8 15 15 20 20 20 20 20 20 20 20 20 20 20 Final Carried 20 | 6 8 11 18 20 20 20 20 20 20 20 20 20 20 Class Distribution -------------------- 23% | Mutant 15% | Botlord-Mutant 11% | Tank 11% | Scavenger-Tank 10% | Botlord-Tank 9% | Bothacker-Mutant 6% | Bothacker-Tank 4% | Botlord-Gunner 3% | Scavenger-Mutant Dominant Class ---------------- Mutant | -10/Materials Mutant | -10/Mines Mutant | -9/Materials Tank | -9/Mines Mutant | -8/Materials Scavenger-Tank | -8/Garrison Bothacker-Tank | -8/Materials Bothacker-Mutant | -7/Factory Bothacker-Mutant | -7/Garrison Bothacker-Mutant | -7/Factory Botlord-Mutant | -7/Garrison Botlord-Mutant | -6/Factory Botlord-Tank | -6/Garrison Resources | -11 -10 -10 -9 -9 -8 -8 -8 -7 -7 -7 -7 -6 -6 ----------- Run | Yrd Mat Min Mat Min Mat Gar Mat Fac Gar Fac Gar Fac Gar Matter Collected 4643 | 214 224 35 259 71 376 623 75 41 620 13 901 675 516 Remotely . | . . . . . . . . . . . . . . Salvage Created 9061 | 14 718 97 1305 121 1026 1513 265 41 1101 . 966 1183 711 Parts 430 | 3 47 8 76 4 43 80 10 1 39 . 36 67 16 Haulers Intercepted 7 | . 2 . 5 . . . . . . . . . . Recyclers Shooed . | . . . . . . . . . . . . . . Parts Field Recycled . | . . . . . . . . . . . . . . Retrieved Matter . | . . . . . . . . . . . . . . Parts Self-Destructed . | . . . . . . . . . . . . . . Prevented . | . . . . . . . . . . . . . . Kills | -11 -10 -10 -9 -9 -8 -8 -8 -7 -7 -7 -7 -6 -6 ------- Run | Yrd Mat Min Mat Min Mat Gar Mat Fac Gar Fac Gar Fac Gar Combat Hostiles Destroyed 218 | . 13 2 27 4 18 35 5 1 21 . 21 22 49 Melee 8 | . . . 1 . 1 . . . 1 . . 5 . Guns 93 | . 4 1 7 1 14 21 1 . 5 . 18 4 17 Cannons 89 | . 9 1 15 3 2 14 4 1 8 . 3 12 17 AOE 23 | . . . . . . . . . 7 . . 1 15 Classes Destroyed 19 | 1 5 . 4 1 . 2 . . 1 . . 4 1 Worker 1 | . . . . . . . . . . . . 1 . Builder 3 | . . . . . . . . . . . . 3 . Tunneler 1 | 1 . . . . . . . . . . . . . Hauler 7 | . 2 . 5 . . . . . . . . . . Recycler 4 | . 2 . 1 . 1 . . . . . . . . Mechanic 1 | . . . 1 . . . . . . . . . . Operator 2 | . . . 2 . . . . . . . . . . Watcher 11 | . 3 . 5 . 2 . . . . . . 1 . Swarmer 50 | . 6 . 14 . . 14 . . 7 . 6 . 3 Saboteur 2 | . . . . . . . . . . . . 2 . Grunt 66 | . 7 2 5 2 11 7 2 . 9 . 7 14 . Brawler 1 | . . . . . . . . . 1 . . . . Duelist 7 | . . . 1 . 1 . 1 . 1 . . . 3 Protector 1 | . . . . . . . . . . . . 1 . Sentry 28 | . . . 7 . 6 7 1 . 2 . 4 1 . Demolisher 2 | . . . . 2 . . . . . . . . . Hunter 5 | . . . . . . 1 1 . 1 . . 1 1 Programmer 17 | . . . . . . 6 . 1 . . 5 4 1 Assembled 42 | . . . . . . . . . . . . . 42 Best Kill Streak 24 | 1 4 2 7 2 3 7 2 1 9 . 3 4 24 Combat Bots Only 24 | . 3 2 7 2 2 7 2 1 9 . 3 4 24 Max Kills in Single Turn 4 | 1 1 1 2 1 1 1 1 1 4 . 1 2 3 Gunslinging . | . . . . . . . . . . . . . . Exploded 4 | . . . . . . . . . 4 . . 1 3 Melee 1 | . . . 1 . 1 . . . 1 . . 1 . Uniques/NPCs Destroyed . | . . . . . . . . . . . . . . Combat | -11 -10 -10 -9 -9 -8 -8 -8 -7 -7 -7 -7 -6 -6 -------- Run | Yrd Mat Min Mat Min Mat Gar Mat Fac Gar Fac Gar Fac Gar Hostile Shots Fired 1218 | . 46 7 146 14 119 195 32 6 104 11 200 159 179 Missed 289 | . 9 3 29 3 25 48 13 1 31 3 45 37 42 Damage Taken 11234 | . 327 76 1155 390 1324 1455 202 59 753 130 1529 1949 1885 Core 1613 | . 64 . 202 34 127 117 14 12 49 . 142 539 313 Absorbed by Shields . | . . . . . . . . . . . . . . Redirected to Shielding 11 | . . . . . . . . . . . . . 11 Ignored by Resistances 3242 | . 100 22 329 106 371 431 57 16 223 38 466 543 540 Regen/Repaired (Parts) 774 | . . . 250 . 418 . 106 . . . . . . Core Remaining (%) 67 | 100 . 74 . 41 . . 53 . . . 71 . . Volleys Fired 661 | 4 42 5 74 8 73 104 24 6 75 1 101 72 72 Largest 3 | 2 2 2 3 3 3 3 2 2 3 2 3 2 3 Hottest 212 | 40 80 80 144 166 166 156 124 108 141 98 155 173 212 Shots Fired 1372 | 8 84 10 152 24 165 286 42 10 139 2 179 121 150 Gun 833 | 8 48 5 78 16 153 197 18 4 78 2 130 18 78 Cannon 470 | . 36 5 74 8 12 89 21 4 48 . 31 83 59 Launcher 9 | . . . . . . . . . 3 . . . 6 Special 60 | . . . . . . . 3 2 10 . 18 20 7 Kinetic 477 | 8 48 5 29 8 74 100 . 4 65 1 82 34 19 Thermal 826 | . 36 5 123 16 91 186 39 4 61 1 79 67 118 Explosive 9 | . . . . . . . . . 3 . . . 6 Electromagnetic . | . . . . . . . . . . . . . . Robot Hit Streak 51 | 6 15 16 22 8 23 30 51 4 40 1 25 15 14 Robot Miss Streak 5 | 1 2 . 3 2 3 2 2 1 2 1 4 2 5 Penetration Max . | . . . . . . . . . . . . . . Secondary Targets 5 | . . . . . 2 1 . . . . 2 . . Max Gunslinging Chain 1 | . . . . . 1 1 . . . . 1 . . Shots Hit Robots 1030 | 7 61 9 115 14 144 189 35 7 117 1 126 113 92 Core Hits 416 | 2 30 4 40 6 43 72 11 2 48 1 41 38 78 Critical Kills 4 | . . . . . . . . . 1 . 2 1 . Critical Parts Destroyed 12 | . . . 2 . 1 . . . . . 6 3 . Critical Strikes 49 | . . . 5 2 10 8 1 . 3 . 14 6 . Burn 31 | . . . 3 2 9 8 1 . 2 . 6 . . Meltdown 1 | . . . . . . . . . 1 . . . . Destroy 13 | . . . . . 1 . . . . . 8 4 . Blast 2 | . . . . . . . . . . . . 2 . Smash 2 | . . . 2 . . . . . . . . . . Melee Attacks 118 | . . . 13 . 16 11 . 6 19 . 21 28 4 Impact 40 | . . . 13 . 16 11 . . . . . . . Slashing 78 | . . . . . . . . 6 19 . 21 28 4 Piercing . | . . . . . . . . . . . . . . Sneak Attacks 4 | . . . . . . . . . 2 . . 2 . Combat Hostiles 2 | . . . . . . . . . 2 . . . . Follow-up Attacks . | . . . . . . . . . . . . . . Damage Inflicted 22681 | 65 896 139 2411 291 2553 3346 574 166 2824 13 2331 3373 3699 Guns 10404 | 65 362 51 936 163 2047 2013 248 57 843 13 1861 375 1370 Cannons 9000 | . 524 87 1273 128 151 1333 326 109 1253 . 470 2143 1203 Explosions 1602 | . . . . . . . . . 476 . . . 1126 Melee 1653 | . . . 202 . 355 . . . 252 . . 844 . Ramming 22 | . 10 1 . . . . . . . . . 11 . Kinetic 5267 | 65 362 51 221 60 887 761 . 57 566 13 992 934 298 Thermal 14137 | . 524 87 1988 231 1311 2585 574 109 1530 . 1339 1584 2275 Explosive 1602 | . . . . . . . . . 476 . . . 1126 Electromagnetic . | . . . . . . . . . . . . . . Impact 557 | . . . 202 . 355 . . . . . . . . Slashing 1096 | . . . . . . . . . 252 . . 844 . Piercing . | . . . . . . . . . . . . . . Highest Corruption 7 | . . . . . 1 5 5 . 2 2 7 1 7 Average Corruption 2 | . . . . . 1 3 5 . 1 2 3 1 2 Corruption Purged 8 | . . . . . . . . . . . . 1 7 Corruption Blocked . | . . . . . . . . . . . . . . Effects 156 | . . . . . 8 56 10 . 25 3 43 6 5 Message Errors 24 | . . . . . . 7 2 . 3 . 11 1 . Matter Fused 52 | . . . . . 2 19 3 . 12 1 11 2 2 Heat Flow Errors 16 | . . . . . 2 5 . . 3 1 3 1 1 Energy Discharges 21 | . . . . . 1 10 2 . 4 . 4 . . Parts Rejected 1 | . . . . . . 1 . . . . . . . Data Loss (minor) 23 | . . . . . 2 8 1 . 2 1 6 2 1 Data Loss (major) 5 | . . . . . . 2 . . 1 . 2 . . Misfires 7 | . . . . . 1 1 1 . . . 3 . 1 Alerts 1 | . . . . . . 1 . . . . . . . Weapon Failures 6 | . . . . . . 2 1 . . . 3 . . Overload Shots . | . . . . . . . . . . . . . . Overflow Damage 367 | . . . 109 4 48 42 13 . 15 . . 87 49 Projectiles 186 | . . . 48 4 . 42 13 . . . . 75 4 Explosions 45 | . . . . . . . . . . . . . 45 Melee 136 | . . . 61 . 48 . . . 15 . . 12 . Knockbacks 17 | . . . . . . . . . . . 8 9 . Impact . | . . . . . . . . . . . . . . Kinetic 16 | . . . . . . . . . . . 8 8 . Secondary 1 | . . . . . . . . . . . . 1 . Self-Inflicted Damage 25 | . . . . . . . . . . . . 5 20 Shots 1 | . . . . . . . . . . . . . 1 Rammed 4 | . 1 1 . . . . . . . . . 2 . Targets Rammed 6 | . 3 1 . . . . . . . . . 2 . Kicked 2 | . 2 . . . . . . . . . . . . Crushed . | . . . . . . . . . . . . . . Highest Temperature 518 | . 243 141 518 387 215 394 349 228 433 178 494 384 423 Average Temperature 117 | . 63 72 135 179 79 107 167 115 138 67 122 77 94 Received Heat Transfer 3139 | . 183 30 222 9 693 558 126 . 207 18 363 670 60 Effects 24 | . . . 9 . . 2 1 . 4 . 7 . 1 Shutdowns 6 | . . . 2 . . 1 . . 1 . 2 . . Energy Bleed 7 | . . . 3 . . . . . 1 . 2 . 1 Interference 4 | . . . 3 . . . 1 . . . . . . Matter Decay 1 | . . . . . . . . . 1 . . . . Short Circuit 2 | . . . . . . . . . 1 . 1 . . Damage (minor) 1 | . . . . . . 1 . . . . . . . Damage (major) 2 | . . . . . . . . . . . 2 . . Damage (core) 1 | . . . 1 . . . . . . . . . . Siege Activations . | . . . . . . . . . . . . . . Robots Corrupted 3 | . . . 2 . 1 . . . . . . . . Combat Hostiles 3 | . . . 2 . 1 . . . . . . . . Parts Fried 2 | . . . 1 . 1 . . . . . . . . Impact Corruptions 4 | . . . 2 . 2 . . . . . . . . Robots Melted 3 | . . . 2 . . . . . 1 . . . . Combat Hostiles 2 | . . . 2 . . . . . . . . . . Parts Melted 51 | . 2 . 13 . 6 16 . . 3 . 7 2 2 Heat Transferred 25890 | . 1110 185 3885 555 3478 5461 1295 111 2109 . 2493 1989 3219 Parts Sabotaged 3 | . . . . . . . . . . . . 3 . Parts Stolen . | . . . . . . . . . . . . . . Parts Stripped . | . . . . . . . . . . . . . . Power Chain Reactions . | . . . . . . . . . . . . . . Alert | -11 -10 -10 -9 -9 -8 -8 -8 -7 -7 -7 -7 -6 -6 ------- Run | Yrd Mat Min Mat Min Mat Gar Mat Fac Gar Fac Gar Fac Gar Peak Influence 2199 | 5 246 74 284 75 177 2131 1120 407 1170 727 2199 1074 930 Initial 1000 | . 2 24 24 35 24 68 894 358 149 532 448 1000 94 Average 559 | 3 75 64 79 20 75 897 1031 315 723 594 1274 624 482 Maximum Alert Level 5 | . 1 . 1 . . 5 4 2 4 3 5 3 3 Low Security (%) 37 | 100 98 100 92 100 100 7 . . 3 . . 7 6 Level 1 13 | . 1 . 7 . . 20 . 81 10 . . 18 41 Level 2 12 | . . . . . . 17 . 18 16 81 12 27 34 Level 3 20 | . . . . . . 20 69 . 61 18 26 45 18 Level 4 8 | . . . . . . 13 30 . 7 . 34 . . Level 5 7 | . . . . . . 20 . . . . 26 . . High Security . | . . . . . . . . . . . . . . Max Security . | . . . . . . . . . . . . . . Squads Dispatched 23 | . 2 . 3 . 2 . 1 2 . 2 . 11 . Investigation 7 | . 2 . 1 . 2 . . . . . . 2 . Extermination 5 | . . . . . . . . 1 . . . 4 . Reinforcement 4 | . . . 2 . . . . 1 . . . 1 . Assault 5 | . . . . . . . 1 . . . . 4 . Garrison 2 | . . . . . . . . . . 2 . . . Intercept . | . . . . . . . . . . . . . . Searches Triggered . | . . . . . . . . . . . . . . Construction Impeded 1 | . . . . . . . . . . . . 1 . Haulers Reinforced . | . . . . . . . . . . . . . . Active Scanning Responses . | . . . . . . . . . . . . . . Cargo Convoy Interrupts . | . . . . . . . . . . . . . . Alert ID Control Effect 10 | . . . . . . . . . . . 3 5 2 Stealth | -11 -10 -10 -9 -9 -8 -8 -8 -7 -7 -7 -7 -6 -6 --------- Run | Yrd Mat Min Mat Min Mat Gar Mat Fac Gar Fac Gar Fac Gar Distress Signals 9 | . . . 4 . 3 . 2 . . . . . . Communications Jammed . | . . . . . . . . . . . . . . Distress Signals . | . . . . . . . . . . . . . . Times Spotted 342 | . 18 2 41 7 24 34 11 2 29 6 45 60 63 Peak Tracking Total 9 | . 3 2 7 6 4 4 5 1 8 2 7 9 8 Tactical Retreats 15 | . . . 2 . 2 2 1 . 1 . 1 3 3 Traps | -11 -10 -10 -9 -9 -8 -8 -8 -7 -7 -7 -7 -6 -6 ------- Run | Yrd Mat Min Mat Min Mat Gar Mat Fac Gar Fac Gar Fac Gar Traps Triggered 32 | . . 1 1 . . 8 . . 7 . 7 3 5 Indirectly . | . . . . . . . . . . . . . . Trap Hack Attempts . | . . . . . . . . . . . . . . Triggered . | . . . . . . . . . . . . . . Disarmed 6 | . 6 . . . . . . . . . . . . Reprogrammed . | . . . . . . . . . . . . . . Reused . | . . . . . . . . . . . . . . Traps Extracted . | . . . . . . . . . . . . . . Installed . | . . . . . . . . . . . . . . Triggered . | . . . . . . . . . . . . . . Most Traps Carried 1 | . . . . . . . . . 1 . . . . Machines | -11 -10 -10 -9 -9 -8 -8 -8 -7 -7 -7 -7 -6 -6 ---------- Run | Yrd Mat Min Mat Min Mat Gar Mat Fac Gar Fac Gar Fac Gar Machines Disabled 29 | . . . . 2 . 10 1 . 5 . 7 1 3 Max in Single Turn 1 | . . . . 1 . 1 1 . 1 . 1 1 1 Garrison Relay 19 | . . . . . . 6 . . 4 . 6 . 3 Machines Repaired . | . . . . . . . . . . . . . . Machines Dismantled . | . . . . . . . . . . . . . . Machines Sabotaged . | . . . . . . . . . . . . . . Overloaded Fab Kills . | . . . . . . . . . . . . . . Hacking | -11 -10 -10 -9 -9 -8 -8 -8 -7 -7 -7 -7 -6 -6 --------- Run | Yrd Mat Min Mat Min Mat Gar Mat Fac Gar Fac Gar Fac Gar Machines Accessed 64 | . 8 1 13 . 7 2 7 5 4 1 1 14 1 Terminals 45 | . 7 . 10 . 4 2 6 3 4 . 1 7 1 Fabricators 3 | . . . . . . . . 1 . . . 2 . Repair Stations 6 | . . . 2 . 2 . 1 . . . . 1 . Recycling Units 2 | . 1 . . . . . . . . . . 1 . Scanalyzers 3 | . . . 1 . . . . . . . . 2 . Garrison Access 4 | . . . . . 1 . . 1 . 1 . 1 . Total Hacks 186 | . 22 1 50 . 21 3 25 19 8 1 1 34 1 Successful 113 | . 11 1 36 . 13 2 12 10 3 1 1 22 1 Failed 72 | . 11 . 14 . 8 1 12 9 5 . . 12 . Catastrophic 7 | . 2 . . . . . 3 1 . . . 1 . Database Lockouts 1 | . . . . . . . 1 . . . . . . Manual 87 | . 14 . 27 . 7 . 20 10 . . . 9 . Terminals 137 | . 21 . 35 . 11 3 23 16 8 . 1 18 1 Fabricators 9 | . . . . . . . . 2 . . . 7 . Repair Stations 21 | . . . 8 . 9 . 2 . . . . 2 . Recycling Units 2 | . 1 . . . . . . . . . . 1 . Scanalyzers 12 | . . . 7 . . . . . . . . 5 . Garrison Access 4 | . . . . . 1 . . 1 . 1 . 1 . Terminal Hacks 50 | . 7 1 13 . 1 2 7 5 3 . 1 9 1 Record 1 | . . . . . . . . . . . . 1 . Part Schematic 7 | . . . 2 . . . 2 3 . . . . . Robot Analysis 7 | . 2 . 3 . . . 1 . . . . 1 . Prototype ID Bank 5 | . 1 . 2 . . . 2 . . . . . . Open Door 1 | . . 1 . . . . . . . . . . . Open DSF 1 | . . . . . . . . . . . . 1 . Branch Access Points 4 | . . . 1 . . . 1 1 . . . 1 . Emergency Access Points 4 | . . . . . . 1 . . 1 . 1 . 1 Terminal Index 4 | . . . 1 . . . 1 1 . . . 1 . Garrison Index 1 | . . . . . 1 . . . . . . . . Unreport Threat 2 | . . . . . . . . . . . . 2 . Locate Traps 4 | . 1 . 2 . . . . . . . . 1 . Disarm Traps 2 | . 2 . . . . . . . . . . . . Hauler Manifests 1 | . 1 . . . . . . . . . . . . Registered Components 1 | . . . 1 . . . . . . . . . . Zone Layout 2 | . . . 1 . . . . . . . . 1 . Garrison Registry 1 | . . . . . . . . . 1 . . . . Patrol Navigation 1 | . . . . . . . . . 1 . . . . Security Stations 1 | . . . . . . 1 . . . . . . . Fabricator Hacks 6 | . . . . . . . . 1 . . . 5 . Network Status 1 | . . . . . . . . . . . . 1 . Load Schematic 2 | . . . . . . . . . . . . 2 . Build 3 | . . . . . . . . 1 . . . 2 . Repair Station Hacks 18 | . . . 8 . 7 . 2 . . . . 1 . Scan Component 10 | . . . 4 . 4 . 1 . . . . 1 . Repair 8 | . . . 4 . 3 . 1 . . . . . . Recycling Unit Hacks 2 | . 1 . . . . . . . . . . 1 . Report Inventory 2 | . 1 . . . . . . . . . . 1 . Scanalyzer 9 | . . . 7 . . . . . . . . 2 . Insert Component 4 | . . . 3 . . . . . . . . 1 . Analyze 5 | . . . 4 . . . . . . . . 1 . Garrison Access Hacks 4 | . . . . . 1 . . 1 . 1 . 1 . Unlock Access 4 | . . . . . 1 . . 1 . 1 . 1 . Unauthorized Hacks 24 | . 3 . 8 . 4 . 3 3 . . . 3 . Terminals 24 | . 3 . 8 . 4 . 3 3 . . . 3 . Track 2 | . . . 2 . . . . . . . . . . Assimilate 3 | . . . 1 . . . 1 1 . . . . . Botnet 16 | . 3 . 4 . 3 . 2 2 . . . 2 . Operators 3 | . . . 1 . 1 . . . . . . 1 . Fabricators . | . . . . . . . . . . . . . . Repair Stations . | . . . . . . . . . . . . . . Recycling Units . | . . . . . . . . . . . . . . Scanalyzers . | . . . . . . . . . . . . . . Garrison Access . | . . . . . . . . . . . . . . Data Cores Recovered 1 | . . . 1 . . . . . . . . . . Used . | . . . . . . . . . . . . . . Hacking Detections 56 | . 7 . 12 . 5 2 7 5 4 1 1 11 1 Full Trace Events 11 | . 2 . 2 . 2 . 1 . 2 . . 2 . Feedback Events 1 | . . . . . 1 . . . . . . . . Corruption 1 | . . . . . 1 . . . . . . . . Feedback Blocked . | . . . . . . . . . . . . . . Robot Schematics Acquired . | . . . . . . . . . . . . . . Robots Built . | . . . . . . . . . . . . . . Authchips . | . . . . . . . . . . . . . . Time . | . . . . . . . . . . . . . . Total Robot Build Rating . | . . . . . . . . . . . . . . Part Schematics Acquired 10 | . . . 5 . . . 1 3 . . . 1 . Parts Built 6 | . . . . . . . . 2 . . . 4 . Authchips . | . . . . . . . . . . . . . . Time 93 | . . . . . . . . 31 . . . 62 . Total Part Build Rating 18 | . . . . . . . . 10 . . . 8 . Parts Repaired 8 | . . . 4 . 3 . 1 . . . . . . Time 292 | . . . 146 . 114 . 32 . . . . . . Parts Recycled . | . . . . . . . . . . . . . . Recycled Matter . | . . . . . . . . . . . . . . Retrieved Matter . | . . . . . . . . . . . . . . Retrieved Components . | . . . . . . . . . . . . . . Parts Scanalyzed 4 | . . . 3 . . . . . . . . 1 . Part Schematics Acquired 4 | . . . 3 . . . . . . . . 1 . Parts Damaged . | . . . . . . . . . . . . . . Bothacking | -11 -10 -10 -9 -9 -8 -8 -8 -7 -7 -7 -7 -6 -6 ------------ Run | Yrd Mat Min Mat Min Mat Gar Mat Fac Gar Fac Gar Fac Gar Used RIF Installer 5 | . . . . . . 2 . . 1 . 2 . . Command Fork 1 | . . . . . . . . . . . 1 . . Robot Detection 1 | . . . . . . 1 . . . . . . . Watcher Feeds 1 | . . . . . . . . . . . 1 . . Alert ID Control 1 | . . . . . . . . . 1 . . . . Robots Hacked 45 | . . . . . . . 3 1 6 . 14 17 4 Non-combat 3 | . . . . . . . 1 1 . . . 1 . Combat 42 | . . . . . . . 2 . 6 . 14 16 4 Robot Hacks Applied 50 | . . . . . . . 3 1 6 . 15 20 5 parse_system 4 | . . . . . . . . . 1 . 1 1 1 no_distress 1 | . . . . . . . . . . . . 1 . locate_traps 1 | . . . . . . . . 1 . . . . . find_garrison 1 | . . . . . . . . . . . . 1 . overload_power 1 | . . . . . . . . . 1 . . . . amplify_resonance 3 | . . . . . . . . . 1 . . 1 1 disable_weapons 2 | . . . . . . . 1 . . . . 1 . reboot_system 4 | . . . . . . . . . . . 3 1 . go_dormant 2 | . . . . . . . . . . . 2 . . overwrite_iff 28 | . . . . . . . 1 . 3 . 8 14 2 formatsys_high 3 | . . . . . . . 1 . . . 1 . 1 Relay Couplers Released 75 | . . . . . . 26 . . 17 . 21 . 11 Machine Destruction 75 | . . . . . . 26 . . 17 . 21 . 11 Attached 23 | . . . . . . 3 . . 3 . 8 3 6 Fabnet Peak Effective % . | . . . . . . . . . . . . . . Robots Rewired 8 | . . . . . . . . . . . . . 8 Allies Hacked . | . . . . . . . . . . . . . . Hacks Repelled . | . . . . . . . . . . . . . . Allies | -11 -10 -10 -9 -9 -8 -8 -8 -7 -7 -7 -7 -6 -6 -------- Run | Yrd Mat Min Mat Min Mat Gar Mat Fac Gar Fac Gar Fac Gar Total Allies 50 | . . . . 3 . . 3 . 7 . 13 14 10 Largest Group 8 | . . . . 3 . . 3 1 2 2 2 3 8 Highest-Rated Group 304 | . . . . 40 . . 35 10 160 160 156 105 304 Highest-Rated Ally 85 | . . . . 16 . . 15 10 80 80 80 47 85 Total Orders . | . . . . . . . . . . . . . . Ally Attacks 191 | . . . . 19 . . 3 . 23 13 45 50 38 Total Damage 4280 | . . . . 225 . . 72 . 420 520 990 1057 996 Kills 43 | . . . . 3 . . 1 . 3 6 10 5 15 Allies Corrupted . | . . . . . . . . . . . . . . Allies Melted 1 | . . . . . . . . . . . . 1 . Intel | -11 -10 -10 -9 -9 -8 -8 -8 -7 -7 -7 -7 -6 -6 ------- Run | Yrd Mat Min Mat Min Mat Gar Mat Fac Gar Fac Gar Fac Gar Robot Analysis Total 7 | . 2 . 3 . . . 1 . . . . 1 . Derelict Logs Recovered 2 | . . 1 . 1 . . . . . . . . . Drone Launches . | . . . . . . . . . . . . . . Drone Recoveries . | . . . . . . . . . . . . . . Exploration | -11 -10 -10 -9 -9 -8 -8 -8 -7 -7 -7 -7 -6 -6 ------------- Run | Yrd Mat Min Mat Min Mat Gar Mat Fac Gar Fac Gar Fac Gar Turns Passed 19659 | 29 961 358 2769 1487 1508 3001 418 710 1566 165 3056 2173 1458 Spaces Moved 8768 | 9 565 200 1026 567 398 1119 232 475 760 113 1507 1147 650 Core . | . . . . . . . . . . . . . . Treads 2957 | . 156 200 1026 567 398 610 . . . . . . . Legs 985 | 9 409 . . . . . . . . . 387 180 . Wheels 4826 | . . . . . . 509 232 475 760 113 1120 967 650 Hover . | . . . . . . . . . . . . . . Flight . | . . . . . . . . . . . . . . Fastest Speed 115 | 120 120 160 165 245 245 120 120 120 135 135 120 115 130 Average Speed 171 | 120 131 164 197 245 249 217 120 130 135 135 163 145 136 Slowest Speed 400 | 120 160 165 245 245 250 400 120 135 180 135 360 180 145 Overloaded Moves . | . . . . . . . . . . . . . . Propulsion Burnouts . | . . . . . . . . . . . . . . Robots Hopped . | . . . . . . . . . . . . . . Cave-ins Triggered . | . . . . . . . . . . . . . . Exploration Rate (%) 54 | 2 91 41 94 97 40 85 26 9 84 3 96 30 62 Regions Visited 13 Branch Regions 2 Pre-discovered Areas 2 | . . 1 . 1 . . . . . . . . . Known Exits Taken 5 | . . . 1 . 1 . . 1 . 1 . 1 . Unknown Exits Taken 5 | 1 1 1 . 1 . . 1 . . . . . . Scrap Searched 1 | . . . . 1 . . . . . . . . . Spaces Dug 20 | . . . 5 . 4 . . 6 . . . 5 . Terrain Destroyed 100 | . . . 5 14 4 . . 7 6 . 1 19 44 Melee 20 | . . . 5 . 4 . . 6 . . . 5 . Projectile 24 | . . . . 1 . . . 1 . . 1 14 7 AOE 56 | . . . . 13 . . . . 6 . . . 37 Terrain Rammed . | . . . . . . . . . . . . . . Walls Destroyed . | . . . . . . . . . . . . . . Machines Disabled . | . . . . . . . . . . . . . . Actions | -11 -10 -10 -9 -9 -8 -8 -8 -7 -7 -7 -7 -6 -6 --------- Run | Yrd Mat Min Mat Min Mat Gar Mat Fac Gar Fac Gar Fac Gar Total 11988 | 19 703 218 1606 647 733 1449 331 546 1138 123 1909 1488 1078 Wait 1831 | 5 71 8 450 64 215 137 66 46 213 10 161 165 220 Move 8757 | 8 564 199 1025 566 398 1118 231 475 758 112 1506 1147 650 Hop . | . . . . . . . . . . . . . . Pick Up 107 | . 7 2 18 3 9 15 4 3 8 . 16 13 9 Fast Attach 74 | 1 1 . 5 1 5 15 1 3 2 . 12 16 12 Attach 53 | . . . 5 1 8 7 1 . 2 . 9 12 8 Detach 11 | . . . 1 . 1 . . . . . 2 4 3 Swap 77 | 1 6 2 5 3 3 6 1 2 11 . 18 9 10 Drop 98 | . 9 1 10 1 5 20 3 5 10 . 15 12 7 Fire 661 | 4 42 5 74 8 73 104 24 6 75 1 101 72 72 Melee 118 | . . . 13 . 16 11 . 6 19 . 21 28 4 Ram 2 | . . . . . . . . . . . . 2 . Kick 2 | . 2 . . . . . . . . . . . . Crush 2 | . 1 1 . . . . . . . . . . . Escape Stasis 144 | . . . . . . 16 . . 40 . 48 8 32 Rewire 51 | . . . . . . . . . . . . . 51 Trap . | . . . . . . . . . . . . . . Miscellaneous . | . . . . . . . . . . . . . . Route ------- -11/Scrapyard -10/Materials (discovered 4 exits: *Mat x3 / *Min) -10/Mines -9/Materials (discovered 5 exits: *Mat x3 / *Min x2) -9/Mines (discovered 4 exits: *Mat x2 / [*Exi] / [*Zio]) -8/Materials -8/Garrison (discovered 2 exits: *Mat x2) -8/Materials -7/Factory (discovered 6 exits: *Fac / *Sto x2 / Low x2 / Gar) -7/Garrison (discovered 3 exits: *Fac x3) -7/Factory -7/Garrison (discovered 3 exits: *Fac x3) -6/Factory (discovered 3 exits: *Low x2 / Gar) -6/Garrison (discovered 1 exit: [*Fac]) History --------- Turn | Location | Event 14 | -11/Scrapyard | Discovered new exit (range 3) 30 | -11/Scrapyard | Entered Materials 134 | -10/Materials | Discovered new exit (range 16) 307 | -10/Materials | Build established: Mutant 476 | -10/Materials | Discovered new exit (range 16) 738 | -10/Materials | Discovered new exit (range 16) 890 | -10/Materials | Discovered new exit (range 11) 991 | -10/Materials | Entered Mines 997 | -10/Mines | Met a Derelict who couldn't figure out how to use a Trap Extractor 1076 | -10/Mines | Discovered new exit (range 9) 1290 | -10/Mines | Learned location of Zion (-7) 1349 | -10/Mines | Entered Materials 1349 | -9/Materials | Evolved 2 slots: Utility x1, Weapon x1 1639 | -9/Materials | Build established: Tank 1911 | -9/Materials | Discovered new exit (range 15) 2050 | -9/Materials | Build established: Mutant 2145 | -9/Materials | Discovered new exit (range 16) 2353 | -9/Materials | Discovered new exit (range 9) 2999 | -9/Materials | Repaired Arm. Treads 3033 | -9/Materials | Repaired Mni. Grenade Launcher 3072 | -9/Materials | Repaired Nuclear Core 3458 | -9/Materials | Discovered new exit (range 5) 3581 | -9/Materials | Destroyed 7 combat bots 3603 | -9/Materials | Core integrity fell below 50% 3666 | -9/Materials | Discovered new exit (range 15) 3743 | -9/Materials | Repaired Nuclear Core 3995 | -9/Materials | Identified exit to Mines 4118 | -9/Materials | Entered Mines 4144 | -9/Mines | A Derelict revealed a hidden shortcut to a safe place 4284 | -9/Mines | Assembled infested the area 4442 | -9/Mines | Deemed a non-threat by the Exiles lab entrance 4442 | -9/Mines | Discovered new exit (range 5) 4582 | -9/Mines | Build established: Tank 4623 | -9/Mines | Received a Rocket Launcher from a helpful Derelict 4696 | -9/Mines | Learned location of Storage (-7) 4923 | -9/Mines | Discovered new exit (range 6) 5184 | -9/Mines | Assisted by bots powering up and referring to "LRC-V3" 5590 | -9/Mines | Discovered new exit (range 8) 5604 | -9/Mines | Lost 3 allies 5605 | -9/Mines | Entered Materials 5605 | -8/Materials | Evolved 2 slots: Utility x2 5793 | -8/Materials | Repaired Imp. Light Armor Plating 6431 | -8/Materials | Repaired Arm. Treads 6452 | -8/Materials | Build established: Mutant 6470 | -8/Materials | Repaired Trap Scanner 7113 | -8/Materials | Identified exit to Garrison 7113 | -8/Materials | Entered Garrison 7155 | -8/Garrison | Triggered checkpoint 7222 | -8/Garrison | Build established: Scavenger-Mutant 7227 | -8/Garrison | Garrison Relay disabled 7339 | -8/Garrison | Garrison Relay disabled 7550 | -8/Garrison | Garrison Relay disabled 7665 | -8/Garrison | Triggered checkpoint 7753 | -8/Garrison | Build established: Scavenger-Tank 7855 | -8/Garrison | Triggered checkpoint 8044 | -8/Garrison | Installed Relay Interface Framework 8120 | -8/Garrison | Garrison Relay disabled 8233 | -8/Garrison | Discovered new exit (range 9) 8457 | -8/Garrison | Triggered checkpoint 8631 | -8/Garrison | Triggered checkpoint 8740 | -8/Garrison | Learned Materials security intel 8806 | -8/Garrison | Garrison Relay disabled 8868 | -8/Garrison | Discovered new exit (range 15) 9253 | -8/Garrison | Triggered checkpoint 9276 | -8/Garrison | Triggered checkpoint 9313 | -8/Garrison | Destroyed 7 combat bots 9593 | -8/Garrison | Triggered checkpoint 9631 | -8/Garrison | Garrison Relay disabled 9727 | -8/Garrison | Expanded RIF knowledge: Robot Detection 10114 | -8/Garrison | Entered Materials 10238 | -8/Materials | Central database locked down 10371 | -8/Materials | Repaired Particle Cannon 10459 | -8/Materials | Discovered new exit (range 5) 10514 | -8/Materials | First assault squad dispatched 10532 | -8/Materials | Entered Factory 10532 | -7/Factory | Accompanied by 1 ally 10532 | -7/Factory | Evolved 2 slots: Utility x2 10652 | -7/Factory | Discovered new exit (range 6) 10659 | -7/Factory | Build established: Bothacker-Tank 10664 | -7/Factory | Identified exit to Storage 10664 | -7/Factory | Identified exit to Lower Caves 10831 | -7/Factory | Fabricated Phase Cannon (x2) 11074 | -7/Factory | Build established: Bothacker-Mutant 11239 | -7/Factory | Identified exit to Garrison 11242 | -7/Factory | Entered Garrison 11242 | -7/Garrison | Accompanied by 1 ally 11274 | -7/Garrison | Triggered checkpoint 11350 | -7/Garrison | Garrison Relay disabled 11467 | -7/Garrison | Rescued a captive Derelict 11472 | -7/Garrison | Rescued a captive Derelict 11736 | -7/Garrison | Triggered checkpoint 11748 | -7/Garrison | Destroyed 9 combat bots 11996 | -7/Garrison | Garrison Relay disabled 12127 | -7/Garrison | Expanded RIF knowledge: Alert ID Control 12163 | -7/Garrison | Discovered new exit (range 14) 12373 | -7/Garrison | Garrison Relay disabled 12424 | -7/Garrison | Discovered new exit (range 8) 12514 | -7/Garrison | Triggered checkpoint 12604 | -7/Garrison | Discovered new exit (range 58) 12604 | -7/Garrison | Discovered new exit (range 57) 12604 | -7/Garrison | Discovered new exit (range 19) 12713 | -7/Garrison | Found embedded Infiltrators 12756 | -7/Garrison | Garrison Relay disabled 12808 | -7/Garrison | Entered Factory 12808 | -7/Factory | Accompanied by 2 allies 12906 | -7/Factory | Garrison activated, responded to threat 12913 | -7/Factory | Garrison activated, responded to threat 12967 | -7/Factory | Identified exit to Garrison 12973 | -7/Factory | Entered Garrison 12973 | -7/Garrison | Accompanied by 2 allies 12998 | -7/Garrison | Expanded RIF knowledge: Command Fork 13091 | -7/Garrison | Triggered checkpoint 13111 | -7/Garrison | Triggered checkpoint 13166 | -7/Garrison | Triggered checkpoint 13311 | -7/Garrison | Discovered new exit (range 10) 13337 | -7/Garrison | Triggered checkpoint 13379 | -7/Garrison | Garrison Relay disabled 13525 | -7/Garrison | Discovered new exit (range 13) 13585 | -7/Garrison | Triggered checkpoint 13713 | -7/Garrison | Garrison Relay disabled 13817 | -7/Garrison | Triggered checkpoint 13973 | -7/Garrison | Garrison Relay disabled 14114 | -7/Garrison | Lost 5 parts (1n2u2w) 14235 | -7/Garrison | Garrison Relay disabled 14269 | -7/Garrison | Garrison Relay disabled 14525 | -7/Garrison | Build established: Botlord-Mutant 14795 | -7/Garrison | Lost 3 allies 15009 | -7/Garrison | Discovered new exit (range 15) 15247 | -7/Garrison | Lost 4 parts (1p1n2w) 15273 | -7/Garrison | Expanded RIF knowledge: Watcher Feeds 15825 | -7/Garrison | Garrison Relay disabled 15925 | -7/Garrison | Build established: Botlord-Gunner 16029 | -7/Garrison | Entered Factory 16029 | -6/Factory | Evolved 2 slots: Utility x2 16036 | -6/Factory | Identified exit to DSF 16201 | -6/Factory | Discovered new exit (range 8) 16335 | -6/Factory | Build established: Botlord-Skirmisher 16379 | -6/Factory | First assault squad dispatched 16778 | -6/Factory | Build established: Botlord-Tank 16851 | -6/Factory | Fabricated Arm. Wheel (x2) 16892 | -6/Factory | Lost 3 allies 16940 | -6/Factory | Core integrity fell below 50% 16976 | -6/Factory | Lost 8 parts (5u3w) 17088 | -6/Factory | Lost 4 parts (1p2n1w) 17193 | -6/Factory | Build established: Botlord-Mutant 17564 | -6/Factory | Identified exit to Lower Caves 17860 | -6/Factory | Fabricated Med. Armor Plating (x2) 18202 | -6/Factory | Identified exit to Garrison 18202 | -6/Factory | Entered Garrison 18257 | -6/Garrison | Assembled breached garrison interior 18307 | -6/Garrison | Garrison Relay disabled 18501 | -6/Garrison | Build established: Botlord-Tank 18531 | -6/Garrison | Destroyed 24 combat bots 18716 | -6/Garrison | Destroyed 8 combat bots 18822 | -6/Garrison | Discovered new exit (range 12) 18922 | -6/Garrison | Core integrity fell below 20% 18954 | -6/Garrison | Lost 5 parts (1p4u) 19269 | -6/Garrison | Garrison Relay disabled 19301 | -6/Garrison | Build established: Botlord-Gunner 19390 | -6/Garrison | Lost 4 allies 19433 | -6/Garrison | Spotted B-75 Beast 19452 | -6/Garrison | Assimilated Beast 5a with formatsys_high 19484 | -6/Garrison | Found Unknown Hackware 19484 | -6/Garrison | Identified Relay Coupler [Proto] 19510 | -6/Garrison | Garrison Relay disabled 19660 | -6/Garrison | Destroyed by as-31861 with Assembled Heavy Rifle Last Messages --------------- 19582_ Stasis field depleted. 19582_ Triggered Stasis Trap. 19582_ A bubble of rippling energy engulfs the area. 19582_ Field strength at 90. 19583_ Field strength at 80. 19584_ Field strength at 70. 19585_ Field strength at 60. 19586_ Field strength at 50. 19587_ Field strength at 40. 19588_ Field strength at 30. 19589_ Field strength at 20. 19590_ Field strength at 10. 19591_ Stasis field depleted. 19618_ as-48716 destroyed. 19629_ Dropped Katana. 19631_ Acquired Axe. 19633_ Acquired 5 matter. 19641_ ALERT: Garrison interior compromised. 19658_ as-14260 destroyed. Map ----- +----------------------------------------------------+ | ?????????????????????????????????????????????????? | | ?????????????????????????????????????????????????? | | ?????????????????????????????????????????????????? | | ?????????????????????????????????????????????????? | | ?????????????????????????????????????????????????? | | ?????????????????????????????????????????????????? | | ?????????????????????????????????????????????????? | | ?????????????????????????????????????????????????? | | ?????????????????????????????????????????????????? | | ???????????????????????????????????????????????### | | ??????????????????????????????????????????????## | | ????????????????????????????????????????????#?# | | ???????????????????????????????????????????? ?## | | ???????????????????????????????????????????? ??# | | ???????????????????????????????????????????? ??# # | | ???????????????????????????????????????????? ??# # | | ???????????????????????????????????????????# #?#% | | ??????????????????????????????????????????? #?## | | ???????????????????????????????????????????# #?# | | ??????????????????????????????????????????? #?# | | ???????+?????????????????????????????????### #?# | | ?????????????????????????????????????????# #?# | | ?????++??????????????????????????????????? # #?#% | | ?????????????????????????????????????????## #?#% | | ????????????????????###################### #?# ! | | #####++####+##??????# @ # %%% # ###% | | #??????# # # # % # */% | | % #??????# # % %! # | | % #??????# a######## ########" %###### | | ######+### #??????# %=#?????# #????###% %###??? | | ?????????# #???####[=*####### #????# %! #??? | | ?????????# #???# =*% #????# %== #??? | | ?????????# % #???# # %[% ##### %#????+% =%%| +??? | | ?????????#*=%##### # % #??# %#????#]]]]]]]#??? | | ?????????+=%=## # %%# #???# #????#####[+##??? | | ?????????#[%%*# ##%%[ ##???#% #???######"+###?? | | ?????????# =% [% #####%[#??## ##? | | ?????????# % % = #??# #? | | ????????## % % % #??##"!!! "##? | | ????????# % # [ ##########???#"""""""""#?? | | ???????### = # %###??????????###########?? | | ???????+ % #??????????????????????? | | ???????# %% #??????????????????????? | | ???????# == #??????????????????????? | | ???????# #??????????????????????? | | ???????### # %###??????????????????????? | | ######### # # %%""#########??????????##### | | =%%* #??????????# | | !/= #??????????# | | ######## =""+#### #??????????# | +----------------------------------------------------+ Best States ------------- Heat Dissipation 83 Energy Generation 21 Energy Capacity 325 Matter Stores 300 Matter Capacity 300 Sight Range 20 Terrain Scan Range 16 Terrain Scan Density 10 Corruption Containment 12 Armor Coverage 825 Resistance: KI 20 Resistance: TH 20 Resistance: EX 20 Resistance: EM 20 Resistance: I 20 Resistance: S 20 Resistance: P 20 Core Shielding 20 Utility Shielding 66 Evasion (%) 55 Targeting Accuracy 5 Recoil Reduction 2 Offensive Hacking 22 Relay Coupler Types 4 Relay Coupler Value 145 Item Schematics ----------------- Arm. Wheel | -9/Materials | Hacked Cargo Storage Unit | -9/Materials | Hacked Imp. Light Armor Plating | -9/Materials | Scanalyzed Med. Armor Plating | -9/Materials | Scanalyzed Beamcaster | -9/Materials | Scanalyzed Imp. Datajack | -8/Materials | Hacked Hcp. Storage Unit | -7/Factory | Hacked System Restoration Module | -7/Factory | Hacked Hvy. Plasma Cannon | -7/Factory | Hacked Imp. System Restoration Module | -6/Factory | Scanalyzed Robot Schematics ------------------ None Fabricated ------------ Phase Cannon | x2 | -7/Factory | Preloaded Arm. Wheel | x2 | -6/Factory Med. Armor Plating | x2 | -6/Factory Alien Tech Used ----------------- None Achievements -------------- Error 47 Factory Defaults Killing Spree Oh No You Don't! Challenges ------------ None Game ------ Seed ProtonExplosiveWings Manual? 0 Play Time 03:15:36 Cumulative 91.9 hours Start 2024.08.08 @ 17:28:36 End 2024.08.08 @ 21:48:53 Sessions 2 Manual Loads 0 Difficulty Adventurer Special Mode None Game No. 60 Rogue 54 Adventurer 3 Explorer 3 Win Type - Total 1 Types 1/0/0/0/0/0/0/0/0 Lore% 39 Gallery% 37 Achievement% 42 Wizard Run 0 Options --------- Layout 1 ASCII 0 Keyboard 1 Movement Numpad Keybinds 1 Fullscreen 1 Font 24/Smallcaps Map View 50x35 Zoom Use 0% Tactical HUD 1 Map Filters NONE Filters NONE Steam 1 RUN: 9c66fa3e-3ffb-4838-b822-70eaba42023d